Cogmind - Beta 12 X6 @@@ ROGUE MODE // 2023.01.28 @ 16:37:46 Player: albenzo Result: Destroyed by D-53 Grenadier with Mini Grenade Launcher Performance ------------- Evolutions (0) 0 Regions Visited (4) 800 Robots Destroyed (24) 120 Value Destroyed (440) 440 Prototype IDs (0) 0 Alien Tech Used (0) 0 Bonus (85) 85 TOTAL SCORE: 1445 Bonus ------- Follower Combat Kills 85 Cogmind --------- Core Integrity 0/250 Matter 283/300 Energy 74/100 System Corruption 1% Temperature Cool (0) Movement Treading (240) Ox1 Location -9/Mines Parts ------- > --- POWER (1) -------- (None) > --- PROPULSION (2) --- Light Treads > --- UTILITY (2) ------ Large Storage Unit > --- WEAPON (2) ------- Bore Cannon > --- INVENTORY (15) --- Light Nuclear Core Makeshift Leg Structural Scanner Experimental Sensor Array Signal Interpreter ECM Suite Propulsion Shielding Hardened Light Armor Plating Hacking Suite Assault Rifle Light Assault Rifle Rocket Launcher Datajack Mining Laser Peak State ------------ > --- POWER ------------ Light Ion Engine > --- PROPULSION ------- Makeshift Leg Makeshift Leg > --- UTILITY ---------- Large Storage Unit Hardened Light Armor Plating > --- WEAPON ----------- Autogun Bore Cannon > --- INVENTORY -------- Light Nuclear Core Light Treads Light Treads Structural Scanner Experimental Sensor Array Signal Interpreter ECM Suite Propulsion Shielding Hardened Light Armor Plating Hacking Suite Assault Rifle Light Assault Rifle Rocket Launcher Datajack Mining Laser [Rating: 21] Favorites ----------- Power Light Ion Engine Engine Light Ion Engine Propulsion Light Treads Treads Light Treads Leg Makeshift Leg Utility Large Storage Unit Device Seismic Detector Storage Large Storage Unit Protection Hardened Light Armor Plating Weapon Assault Rifle Ballistic Gun Assault Rifle Ballistic Cannon Bore Cannon Launcher Mini Grenade Launcher Build | -11 -10 -10 -10 -9 ------- Run | Jun Mat Min Exi Min Slots Evolved . | . . . . . Power . | . . . . . Propulsion . | . . . . . Utility . | . . . . . Weapon . | . . . . . Parts Attached 27 | 9 7 5 2 4 Power 3 | 2 1 . . . Engine 3 | 2 1 . . . Core . | . . . . . Reactor . | . . . . . Propulsion 6 | 2 . . 2 2 Treads 4 | 2 . . . 2 Leg 2 | . . . 2 . Wheel . | . . . . . Hover . | . . . . . Flight . | . . . . . Utility 11 | 3 3 4 . 1 Device 4 | 2 . 2 . . Storage 3 | 1 2 . . . Processor . | . . . . . Hackware . | . . . . . Protection 4 | . 1 2 . 1 Artifact . | . . . . . Weapon 7 | 2 3 1 . 1 Energy Gun . | . . . . . Energy Cannon . | . . . . . Ballistic Gun 5 | 2 2 . . 1 Ballistic Cannon 1 | . . 1 . . Launcher 1 | . 1 . . . Special Weapon . | . . . . . Impact Weapon . | . . . . . Slashing Weapon . | . . . . . Piercing Weapon . | . . . . . Special Melee Weapon . | . . . . . Unidentified Prototypes . | . . . . . Parts Lost 6 | . . 1 . 5 Power 1 | . . . . 1 Propulsion 2 | . . . . 2 Utility 2 | . . 1 . 1 Weapon 1 | . . . . 1 Highest Loss Streak 5 | . . 1 . 5 To Critical Strikes . | . . . . . Average Slot Usage (%) 99 | . 100 99 100 99 Engine 13 | . 14 14 14 13 Treads 23 | . 28 28 22 . Leg 4 | . . . 5 27 Device 6 | . 10 10 . . Storage 14 | . 14 14 14 14 Protection 7 | . 3 3 14 13 Ballistic Gun 19 | . 28 17 14 14 Ballistic Cannon 8 | . . 10 14 14 Naked Turns . | . . . . . Heaviest Build 92 | 15 92 38 38 40 Greatest Support 40 | 40 40 40 40 40 Greatest Overweight (x) 2 | 2 2 . 1 1 Average Overweight (x) . | . . . . . Largest Inventory Capacity 25 | 8 25 15 15 15 Average Capacity 14 | 7 16 15 15 15 Most Carried 25 | 8 25 15 15 15 Average Carried 13 | 6 12 14 14 14 Final Capacity 15 | 8 15 15 15 15 Final Carried 15 | 8 15 14 15 14 Class Distribution -------------------- 74% | Mutant 25% | Commander-Mutant Dominant Class ---------------- Mutant | -10/Materials Mutant | -10/Mines Commander-Mutant | -10/Exiles Commander-Mutant | -9/Mines Resources | -11 -10 -10 -10 -9 ----------- Run | Jun Mat Min Exi Min Matter Collected 979 | 333 316 273 30 27 Remotely . | . . . . . Salvage Created 702 | 111 242 349 . . Parts 52 | 12 21 19 . . Haulers Intercepted . | . . . . . Recyclers Shooed 1 | . . 1 . . Parts Field Recycled . | . . . . . Retrieved Matter . | . . . . . Parts Self-Destructed . | . . . . . Prevented . | . . . . . Kills | -11 -10 -10 -10 -9 ------- Run | Jun Mat Min Exi Min Combat Hostiles Destroyed 14 | . 9 5 . . Guns 9 | . 6 3 . . Cannons 2 | . . 2 . . AOE 3 | . 3 . . . Classes Destroyed 7 | 2 4 1 . . Worker 1 | 1 . . . . Builder 1 | . 1 . . . Tunneler 5 | 5 . . . . Recycler 2 | . . 2 . . Operator 1 | . 1 . . . Swarmer 6 | . 6 . . . Grunt 8 | . 3 5 . . Best Kill Streak 3 | 1 3 3 . . Combat Bots Only 3 | . 3 2 . . Max Kills in Single Turn 3 | 1 3 1 . . Gunslinging . | . . . . . Exploded 3 | . 3 . . . Melee . | . . . . . Uniques/NPCs Destroyed . | . . . . . Combat | -11 -10 -10 -10 -9 -------- Run | Jun Mat Min Exi Min Damage Taken 1487 | . 367 373 . 747 Core 266 | . 47 99 . 120 Absorbed by Shields . | . . . . . Core Remaining (%) 100 | 100 . . . . Volleys Fired 89 | 21 34 32 . 2 Largest 2 | 2 2 2 . 2 Hottest 80 | 40 40 77 . 80 Shots Fired 177 | 42 67 64 . 4 Gun 161 | 42 66 51 . 2 Cannon 15 | . . 13 . 2 Launcher 1 | . 1 . . . Special . | . . . . . Kinetic 176 | 42 66 64 . 4 Thermal . | . . . . . Explosive 1 | . 1 . . . Electromagnetic . | . . . . . Robot Hit Streak 13 | 10 7 13 . . Robot Miss Streak 8 | 2 8 5 . 4 Penetration Max . | . . . . . Secondary Targets . | . . . . . Shots Hit Robots 108 | 28 34 46 . . Core Hits 40 | 6 17 17 . . Critical Kills 2 | . . 2 . . Critical Parts Destroyed 7 | . 2 5 . . Critical Strikes 9 | . 2 7 . . Destroy 9 | . 2 7 . . Melee Attacks . | . . . . . Impact . | . . . . . Slashing . | . . . . . Piercing . | . . . . . Sneak Attacks . | . . . . . Combat Hostiles . | . . . . . Follow-up Attacks . | . . . . . Damage Inflicted 1502 | 344 588 555 . 15 Guns 1114 | 344 395 360 . 15 Cannons 195 | . . 195 . . Explosions 193 | . 193 . . . Melee . | . . . . . Ramming . | . . . . . Kinetic 1309 | 344 395 555 . 15 Thermal . | . . . . . Explosive 193 | . 193 . . . Electromagnetic . | . . . . . Impact . | . . . . . Slashing . | . . . . . Piercing . | . . . . . Highest Corruption 1 | . 1 1 1 1 Average Corruption 1 | . 1 1 1 1 Corruption Purged . | . . . . . Corruption Blocked . | . . . . . Effects 24 | . 7 6 7 4 Message Errors 13 | . 4 6 2 1 Matter Fused 4 | . 2 . 1 1 Heat Flow Errors 2 | . . . 1 1 Energy Discharges 1 | . . . 1 . Data Loss (minor) 2 | . . . 1 1 Data Loss (major) 2 | . 1 . 1 . Overload Shots . | . . . . . Overflow Damage . | . . . . . Projectiles . | . . . . . Explosions . | . . . . . Melee . | . . . . . Knockbacks . | . . . . . Impact . | . . . . . Kinetic . | . . . . . Secondary . | . . . . . Self-Inflicted Damage 37 | . 37 . . . Shots 1 | . 1 . . . Rammed . | . . . . . Targets Rammed . | . . . . . Kicked . | . . . . . Crushed . | . . . . . Highest Temperature 378 | . 12 378 263 259 Average Temperature 107 | . 6 122 134 105 Received Heat Transfer 261 | . 42 213 . 6 Effects 2 | . . 2 . . Shutdowns 1 | . . 1 . . Energy Bleed 1 | . . 1 . . Siege Activations . | . . . . . Robots Corrupted . | . . . . . Combat Hostiles . | . . . . . Parts Fried . | . . . . . Impact Corruptions . | . . . . . Robots Melted . | . . . . . Combat Hostiles . | . . . . . Parts Melted . | . . . . . Heat Transferred . | . . . . . Parts Sabotaged . | . . . . . Parts Stolen . | . . . . . Parts Stripped . | . . . . . Power Chain Reactions . | . . . . . Missiles Intercepted . | . . . . . Alert | -11 -10 -10 -10 -9 ------- Run | Jun Mat Min Exi Min Peak Influence 185 | 30 185 159 . 85 Initial 69 | . . 69 . . Average 49 | 12 68 58 . 15 Maximum Alert Level . | . . . . . Low Security (%) 100 | 100 100 100 . 100 Level 1 . | . . . . . Level 2 . | . . . . . Level 3 . | . . . . . Level 4 . | . . . . . Level 5 . | . . . . . High Security . | . . . . . Max Security . | . . . . . Squads Dispatched 1 | . 1 . . . Investigation . | . . . . . Extermination . | . . . . . Reinforcement 1 | . 1 . . . Assault . | . . . . . Garrison . | . . . . . Intercept . | . . . . . Searches Triggered . | . . . . . Construction Impeded . | . . . . . Haulers Reinforced . | . . . . . Active Scanning Responses . | . . . . . Cargo Convoy Interrupts . | . . . . . Stealth | -11 -10 -10 -10 -9 --------- Run | Jun Mat Min Exi Min Distress Signals 2 | . 2 . . . Communications Jammed . | . . . . . Distress Signals . | . . . . . Times Spotted 31 | . 19 7 . 5 Peak Tracking Total 4 | . 4 3 . 3 Tactical Retreats 3 | . 2 1 . . Traps | -11 -10 -10 -10 -9 ------- Run | Jun Mat Min Exi Min Traps Triggered 2 | . 2 . . . Indirectly . | . . . . . Trap Hack Attempts . | . . . . . Triggered . | . . . . . Disarmed . | . . . . . Reprogrammed . | . . . . . Reused . | . . . . . Traps Extracted . | . . . . . Installed . | . . . . . Triggered . | . . . . . Machines | -11 -10 -10 -10 -9 ---------- Run | Jun Mat Min Exi Min Machines Disabled . | . . . . . Max in Single Turn . | . . . . . Machines Repaired . | . . . . . Machines Sabotaged . | . . . . . Overloaded Fab Kills . | . . . . . Hacking | -11 -10 -10 -10 -9 --------- Run | Jun Mat Min Exi Min Machines Accessed 9 | . 7 . 2 . Terminals 6 | . 6 . . . Fabricators . | . . . . . Repair Stations . | . . . . . Recycling Units 1 | . 1 . . . Scanalyzers . | . . . . . Garrison Access . | . . . . . Total Hacks 29 | . 18 . 11 . Successful 18 | . 7 . 11 . Failed 11 | . 11 . . . Catastrophic 3 | . 3 . . . Database Lockouts . | . . . . . Manual 8 | . 7 . 1 . Terminals 14 | . 14 . . . Fabricators . | . . . . . Repair Stations . | . . . . . Recycling Units 4 | . 4 . . . Scanalyzers . | . . . . . Garrison Access . | . . . . . Terminal Hacks 15 | . 4 . 11 . Record 11 | . . . 11 . Terminal Index 1 | . 1 . . . Locate Traps 2 | . 2 . . . Hauler Manifests 1 | . 1 . . . Fabricator Hacks . | . . . . . Repair Station Hacks . | . . . . . Recycling Unit Hacks 1 | . 1 . . . Report Inventory 1 | . 1 . . . Scanalyzer . | . . . . . Garrison Access Hacks . | . . . . . Unauthorized Hacks 2 | . 2 . . . Terminals . | . . . . . Fabricators . | . . . . . Repair Stations . | . . . . . Recycling Units 2 | . 2 . . . Reject 1 | . 1 . . . Mask 1 | . 1 . . . Scanalyzers . | . . . . . Garrison Access . | . . . . . Data Cores Recovered . | . . . . . Used . | . . . . . Hacking Detections 6 | . 6 . . . Full Trace Events . | . . . . . Feedback Events . | . . . . . Feedback Blocked . | . . . . . Robot Schematics Acquired . | . . . . . Robots Built . | . . . . . Authchips . | . . . . . Time . | . . . . . Total Robot Build Rating . | . . . . . Part Schematics Acquired . | . . . . . Parts Built . | . . . . . Authchips . | . . . . . Time . | . . . . . Total Part Build Rating . | . . . . . Parts Repaired . | . . . . . Time . | . . . . . Parts Recycled . | . . . . . Recycled Matter . | . . . . . Retrieved Matter . | . . . . . Retrieved Components . | . . . . . Parts Scanalyzed . | . . . . . Part Schematics Acquired . | . . . . . Parts Damaged . | . . . . . Bothacking | -11 -10 -10 -10 -9 ------------ Run | Jun Mat Min Exi Min Used RIF Installer . | . . . . . Robots Hacked . | . . . . . Non-combat . | . . . . . Combat . | . . . . . Robot Hacks Applied . | . . . . . Relay Couplers Released . | . . . . . Fabnet Peak Effective % . | . . . . . Robots Rewired 4 | . . . 4 . Allies Hacked . | . . . . . Hacks Repelled . | . . . . . Allies | -11 -10 -10 -10 -9 -------- Run | Jun Mat Min Exi Min Total Allies 5 | . . 1 4 . Largest Group 4 | . . 1 4 4 Highest-Rated Group 58 | . . 31 58 58 Highest-Rated Ally 31 | . . 31 31 21 Total Orders . | . . . . . Ally Attacks 21 | . . . . 21 Total Damage 277 | . . . . 277 Kills 4 | . . . . 4 Allies Corrupted . | . . . . . Allies Melted . | . . . . . Intel | -11 -10 -10 -10 -9 ------- Run | Jun Mat Min Exi Min Robot Analysis Total . | . . . . . Derelict Logs Recovered 2 | . . 1 . 1 Drone Launches . | . . . . . Drone Recoveries . | . . . . . Exploration | -11 -10 -10 -10 -9 ------------- Run | Jun Mat Min Exi Min Turns Passed 3944 | 410 1133 1005 960 436 Spaces Moved 2070 | 197 460 553 569 291 Core 12 | 12 . . . . Treads 1639 | 185 460 553 437 4 Legs 419 | . . . 132 287 Wheels . | . . . . . Hover . | . . . . . Flight . | . . . . . Fastest Speed 50 | 50 160 160 140 140 Average Speed 167 | 157 209 160 157 140 Slowest Speed 320 | 160 320 160 210 210 Overloaded Moves . | . . . . . Propulsion Burnouts . | . . . . . Robots Hopped . | . . . . . Cave-ins Triggered . | . . . . . Exploration Rate (%) 67 | 14 75 96 92 60 Regions Visited 4 Branch Regions 3 Pre-discovered Areas 2 | . . 1 1 . Known Exits Taken . | . . . . . Unknown Exits Taken 4 | 1 1 1 1 . Scrap Searched 3 | . . 1 . 2 Spaces Dug . | . . . . . Terrain Destroyed 17 | . 12 3 . 2 Melee . | . . . . . Projectile 5 | . . 3 . 2 AOE 12 | . 12 . . . Terrain Rammed . | . . . . . Walls Destroyed . | . . . . . Machines Disabled . | . . . . . Actions | -11 -10 -10 -10 -9 --------- Run | Jun Mat Min Exi Min Total 2394 | 253 574 618 632 317 Wait 72 | 14 24 20 1 13 Move 2066 | 196 459 552 568 291 Hop . | . . . . . Pick Up 45 | 10 27 4 1 3 Fast Attach 9 | 6 . 1 2 . Attach 3 | 1 . 1 . 1 Detach 1 | . . . 1 . Swap 15 | 2 7 3 . 3 Drop 37 | 3 23 5 2 4 Fire 89 | 21 34 32 . 2 Melee . | . . . . . Ram . | . . . . . Kick . | . . . . . Crush . | . . . . . Escape Stasis . | . . . . . Rewire 57 | . . . 57 . Trap . | . . . . . Miscellaneous . | . . . . . Route ------- -11/Junkyard -10/Materials (discovered 3 exits: [*Mat x2] / [*Min]) -10/Mines (discovered 3 exits: [*Mat x2] / *Exi) -10/Exiles (discovered 2 exits: [*Min x2]) -9/Mines (discovered 1 exit: [*Mat]) History --------- Turn | Location | Event 28 | -11/Junkyard | Discovered new exit (range 14) 411 | -11/Junkyard | Entered Materials 412 | -10/Materials | Build established: Mutant 704 | -10/Materials | Discovered new exit (range 16) 897 | -10/Materials | Discovered new exit (range 10) 1072 | -10/Materials | Discovered new exit (range 8) 1544 | -10/Materials | Entered Mines 1559 | -10/Mines | Learned Materials terminal intel 1576 | -10/Mines | Discovered new exit (range 6) 1583 | -10/Mines | Received a Rocket Launcher from a helpful Derelict 1664 | -10/Mines | Found a damaged Exp. Sensor Array with a note attached 1667 | -10/Mines | Found Prototype Device 1819 | -10/Mines | A weapon hastily lodged in a ceiling crevice suddenly fell to the ground 2002 | -10/Mines | Discovered new exit (range 11) 2042 | -10/Mines | Deemed a non-threat by the Exiles lab entrance 2042 | -10/Mines | Discovered new exit (range 5) 2405 | -10/Mines | Core integrity fell below 50% 2478 | -10/Mines | Escorted by a lone wolf Derelict 2498 | -10/Mines | Learned location of Storage (-7) 2549 | -10/Mines | Entered Exiles 2549 | -10/Exiles | Found Exiles lab destroyed 2549 | -10/Exiles | Accompanied by 1 ally 2581 | -10/Exiles | Discovered new exit (range 14) 3106 | -10/Exiles | Learned location of Zion (-7) 3211 | -10/Exiles | Build established: Commander-Mutant 3495 | -10/Exiles | Discovered new exit (range 10) 3509 | -10/Exiles | Entered Mines 3509 | -9/Mines | Accompanied by 4 allies 3518 | -9/Mines | Joined a pair of Derelicts in attacking an 0b10 outpost 3584 | -9/Mines | YI-UF0 nonchalantly dropped a Grenade Launcher on the ground 3590 | -9/Mines | Learned 2 Materials zone layouts 3858 | -9/Mines | Discovered new exit (range 3) 3915 | -9/Mines | Assembled infested the area 3936 | -9/Mines | Core integrity fell below 20% 3945 | -9/Mines | Destroyed by D-53 Grenadier with Mini Grenade Launcher Last Messages --------------- 03924_ T:,O2W#T7N>EXDZOS/D=Q8RFUWNY 03925_ T-07 Excavator destroyed. 03926_ The unstable cave ceiling collapses. 03926_ HV Slug penetrates Wall. 03927_ The unstable cave ceiling collapses. 03927_ Lgt. Ion Engine destroyed. 03930_ The unstable cave ceiling collapses. 03933_ Mak. Leg destroyed. 03934_ K-01 Serf collects debris. 03935_ The unstable cave ceiling collapses. 03936_ U-05 Engineer lays Concrete. 03938_ K-01 Serf collects debris. 03939_ The unstable cave ceiling collapses. 03939_ Hrd. Light Armor Plating destroyed. 03939_ U-05 Engineer builds a Wall. 03939_ U-05 Engineer destroyed. 03940_ The unstable cave ceiling collapses. 03943_ Autogun destroyed. 03945_ The unstable cave ceiling collapses. 03945_ Lgt. Treads destroyed. Map ----- +----------------------------------------------------+ | #?? #???????????????????????????????????????? | | ### ##??????????????????????????????????????? | | # ##?????????????????????????????????????? | | ##????????????????????????????????????? | | #????????????????????????????????????? | | #???? #?? ???????????????????????????? | | ##??? #?? ??????????????????????????? | | ##???? ### ??????????????????????????? | | ##??? ??????????????????????????? | | #### ??????????????????????????? | | #? ???????????????????????????? | | #?# ???????????????????????????? | | ##?# ???????????????????????????? | | #??# ???????????????????????????? | | ##??# #???????????????????????????? | | #???? #???????????????????????????? | | # ##??? ####????????????????????????? | | ?## [ % % ##??# ?????????????????????????? | | ??# %#!% #### #???????????????????????????? | | ??#%!### #???????????????????????????? | | #?#! #?## %##### #???????????????????????????? | | ### #??######## #??#########????#???????????? | | ## #??# #### # #### ####????????? | | # #??# u k< ## # # # #??????? | | #??# ### % #??????? | | #??# #### @ #??????? | | #####??# #######=! dd #??????? | | ##??????# #????#;%| #??????? | | #?????# #???### #??????? | | ?????# #?????### #??????? | | ?????# #???????## ##??????? | | ?????## ######????????## ##???????? | | ??????###???????????????## # ##????????? | | ?????????????????????????## ###?????????? | | | | | | | | | | | | | | | | | | | | | | | | | | | | | | | | | +----------------------------------------------------+ Best States ------------- Heat Dissipation 25 Energy Generation 10 Energy Capacity 250 Matter Stores 300 Matter Capacity 300 Sight Range 16 Terrain Scan Density 10 Armor Coverage 150 Evasion (%) 55 Recoil Reduction 2 Item Schematics ----------------- None Robot Schematics ------------------ None Fabricated ------------ Nothing Alien Tech Used ----------------- None Achievements -------------- None Challenges ------------ None Game ------ Seed EtherialDroneInterpreter Manual? 0 Play Time 00:23:36 Cumulative 97.5 hours Start 2023.01.28 @ 16:00:12 End 2023.01.28 @ 16:37:46 Sessions 1 Manual Loads 0 Difficulty Rogue Special Mode None Game No. 86 Rogue 86 Adventurer 0 Explorer 0 Win Type - Total 5 Types 4/0/1/0/0/0/0/0/0 Lore% 64 Gallery% 63 Achievement% 55 Wizard Run 0 Options --------- ASCII 0 Keyboard 1 Movement Vi Keybinds 0 Fullscreen 2 Font 24/Proggy Map View 76x50 Tactical HUD 1 Map Filters NONE Filters NONE Steam 1 RUN: 4b330e17-0171-49b6-a746-093087919431